fUST/lending_fUST_20260101
["ID","MTS","AMOUNT","RATE_DAILY","PERIOD"]
[400212447,1767198646080,-2804.88,0.000306,2]
[400212449,1767198646089,-2804.88,0.000306,2]
[400212451,1767198646099,-1100.0,0.00030605,7]
[400212453,1767198646108,-1100.0,0.00030645,7]
[400212455,1767198646117,-1100.0,0.00030696,7]
[400212457,1767198646126,-500.0,0.00030697,7]
[400212459,1767198646136,-240.56,0.000307,2]
[400212461,1767198646145,-2804.88,0.000307,2]
[400212463,1767198646155,-1100.0,0.00030742,7]
[400212465,1767198646164,-2804.88,0.000308,2]
[400212467,1767198646173,-2804.88,0.000308,2]
[400212469,1767198646182,-500.0,0.00030808,7]
[400212471,1767198646191,-1100.0,0.00030854,7]
[400212473,1767198646200,-1100.0,0.00030874,7]
[400212475,1767198646210,-1100.0,0.0003089,7]
[400212478,1767198646220,-2804.88,0.000309,2]
[400212480,1767198646230,-2804.88,0.000309,2]
[400212482,1767198646239,-1100.0,0.00030935,7]
[400212484,1767198646248,-5000.0,0.00030954,2]
[400212486,1767198646257,-160.0,0.00030957,8]
[400212488,1767198646266,-956.2,0.00030958,30]
[400212490,1767198646275,-191.03727861,0.00031,120]
[400212492,1767198646284,-183.42010434,0.00031,120]
[400212494,1767198646293,-309.65070131,0.00031,120]
[400212496,1767198646303,-193.78459303,0.00031,120]
[400212498,1767198646312,-206.24088796,0.00031,120]
[400212500,1767198646321,-162.33069799,0.00031,120]
[400212502,1767198646331,-178.8674121,0.00031,120]
[400212504,1767198646339,-161.01318651,0.00031,120]
[400212506,1767198646349,-162.37843672,0.00031,120]
[400212508,1767198646358,-198.07485528,0.00031,120]
[400212509,1767198646366,-180.68929149,0.00031,120]
[400212511,1767198646375,-183.49170094,0.00031,120]
[400212513,1767198646385,-1430.86618739,0.00031,120]
[400212515,1767198646394,-2804.88,0.00031,2]
[400212517,1767198646403,-500.0,0.00031041,7]
[400212519,1767198646413,-2804.88,0.000311,2]
[400212521,1767198646422,-2804.88,0.000311,2]
[400212523,1767198646431,-367.96456977,0.00031123,15]
[400212525,1767198646440,-1100.0,0.00031183,7]
[400212527,1767198646449,-2804.88,0.000312,2]
[400212529,1767198646458,-2804.88,0.000312,2]
[400212531,1767198646467,-1100.0,0.00031232,7]
[400212533,1767198646475,-2804.88,0.000313,2]
[400212535,1767198646485,-175.37,0.00031356,30]
[400212537,1767198646498,-160.0,0.00031397,46]
[400212539,1767198646508,-2804.88,0.000314,2]
[400212541,1767198646518,-2804.88,0.000314,2]
[400212543,1767198646527,-323.3298199,0.00031418,2]
[400212545,1767198646538,-1100.0,0.0003143,7]
[400212547,1767198646547,-160.0,0.00031452,9]
[400212549,1767198646555,-1364.0,0.0003146,2]
[400212551,1767198646565,-627.0,0.0003146,2]
[400212553,1767198646574,-2156.0,0.0003146,2]
[400212555,1767198646583,-416.0,0.0003146,2]
[400212557,1767198646592,-416.0,0.0003146,2]
[400212559,1767198646601,-1100.0,0.00031487,7]
[400212561,1767198646611,-1100.0,0.00031492,7]
[400212563,1767198646620,-2804.88,0.000315,2]
[400212565,1767198646629,-2804.88,0.000315,2]
[400212567,1767198646638,-956.2,0.00031506,31]
[400212569,1767198646647,-1100.0,0.00031559,7]
[400212571,1767198646656,-1100.0,0.00031566,7]
[400212573,1767198646665,-1100.0,0.00031594,7]
[400212575,1767198646674,-2804.88,0.000316,2]
[400212577,1767198646684,-896.5687607,0.00031649,2]
[400212579,1767198646693,-1100.0,0.00031651,7]
[400212581,1767198646702,-1100.0,0.00031653,7]
[400212583,1767198646711,-151.0,0.00031719,5]
[400212584,1767198646720,-1100.0,0.00031749,7]
[400212586,1767198646729,-500.0,0.00031818,7]
[400212588,1767198646738,-191.03727861,0.000319,120]
[400212590,1767198646746,-183.42010434,0.000319,120]
[400212603,1767198646855,-193.78459303,0.000319,120]
[400212605,1767198646865,-162.33069799,0.000319,120]
[400212607,1767198646875,-178.8674121,0.000319,120]
[400212609,1767198646885,-161.01318651,0.000319,120]
[400212611,1767198646893,-162.37843672,0.000319,120]
[400212613,1767198646902,-198.07485528,0.000319,120]
[400212615,1767198646911,-180.68929149,0.000319,120]
[400212617,1767198646920,-1038.33,0.000319,14]
[400212619,1767198646930,-10762.96,0.000319,2]
[400212621,1767198646940,-183.49170094,0.000319,120]
[400212623,1767198646949,-1430.86618739,0.000319,120]
[400212625,1767198646958,-1100.0,0.0003191,7]
[400212627,1767198646967,-1100.0,0.00031929,7]
[400212629,1767198646977,-160.0,0.00031948,10]
[400212631,1767198646986,-26677.68431593,0.00032,120]
[400212633,1767198646996,-1041.66666667,0.00032,120]
[400212635,1767198647005,-1017.21903832,0.00032,7]
[400212637,1767198647015,-1100.0,0.00032003,7]
[400212639,1767198647024,-726.0,0.0003204,3]
[400212641,1767198647033,-956.2,0.00032054,32]
[400212643,1767198647042,-1203.18233645,0.00032273,7]
[400212645,1767198647051,-1100.0,0.00032295,7]
[400212647,1767198647060,-1100.0,0.00032386,7]
[400212649,1767198647069,-500.0,0.00032424,7]
[400212651,1767198647079,-160.0,0.00032444,11]
[400212653,1767198647088,-856.70877363,0.00032535,2]
[400212655,1767198647098,-1218.46508754,0.0003254,7]
[400212657,1767198647107,-500.0,0.0003254,7]
[400212659,1767198647117,-956.2,0.00032602,33]
[400212661,1767198647126,-215.55321326,0.00032839,7]
[400212663,1767198647135,-200.0,0.00032876,120]
[400212664,1767198647145,-200.0,0.00032876,120]
[400212667,1767198647154,-452.27,0.00032877,10]
[400212670,1767198647163,-706.14,0.00032877,10]
[400212673,1767198647172,-500.0,0.00032877,5]
[400212675,1767198647181,-150.0,0.00032877,5]
[400212677,1767198647191,-191.03727861,0.000329,120]
[400212679,1767198647200,-183.42010434,0.000329,120]
[400212681,1767198647209,-193.78459303,0.000329,120]
[400212683,1767198647218,-162.33069799,0.000329,120]
[400212685,1767198647227,-178.8674121,0.000329,120]
[400212687,1767198647236,-161.01318651,0.000329,120]
[400212689,1767198647246,-162.37843672,0.000329,120]
[400212691,1767198647256,-198.07485528,0.000329,120]
[400212693,1767198647265,-180.68929149,0.000329,120]
[400212695,1767198647274,-183.49170094,0.000329,120]
[400212697,1767198647284,-1430.86618739,0.000329,120]
[400212699,1767198647293,-160.0,0.0003294,12]
[400212701,1767198647303,-146480.1687316,0.00033,20]
[400212703,1767198647312,-166.0,0.00033,14]
[400212705,1767198647322,-12721.51246894,0.00033,120]
[400212715,1767198647410,-210.00806293,0.00033,120]
[400212717,1767198647420,-24219.0892891,0.00033,120]
[400212748,1767198647744,-403.53574957,0.0002277,2]
[400212756,1767198647803,-496.36917147,0.0002277,2]
[400212933,1767199081940,153.62,8.492e-05,30]
[400212934,1767199082237,153.62,8.492e-05,30]
[400212935,1767199082544,153.62,8.492e-05,30]
[400213174,1767199757975,1855.81035215,0.00010954,2]
[400213221,1767199831862,-999.0,0.00011169,2]
[400213223,1767199831873,-577.0,0.00011169,2]
[400213225,1767199831882,-1110.8674913,0.00011203,2]
[400213228,1767199831892,-331.26713423,0.00011252,2]
[400213231,1767199831902,-4614.1361455,0.000113,2]
[400213234,1767199831914,-300.0,0.00011594,2]
[400213237,1767199831923,-300.0,0.00011594,2]
[400213240,1767199831932,-2041.5187249,0.00011595,2]
[400213242,1767199831943,-1200.0,0.00012327,2]
[400213244,1767199831952,-300.0,0.00012328,2]
[400213246,1767199831961,-604.71,0.00012329,2]
[400213248,1767199831971,-50000.0,0.00012329,2]
[400213250,1767199831980,-191.578,0.00012344,2]
[400213252,1767199831989,-161.83602163,0.000124,2]
[400213254,1767199831999,-220.0,0.0001245,2]
[400213256,1767199832009,-44631.01765049,0.00012492,2]
[400213258,1767199832021,-753.08387083,0.00012492,2]
[400213261,1767199832035,-561694.19654156,0.00012492,2]
[400213263,1767199832046,-1420.2,0.00012492,2]
[400213265,1767199832059,-1080.36649452,0.00012492,2]
[400213267,1767199832070,-662.01408104,0.00012492,2]
[400213367,1767199837787,-500.0,0.00012491,2]
[400213368,1767199837796,-1176.2143946,0.00012491,2]
[400213370,1767199837806,-1176.2143946,0.00012491,2]
[400213372,1767199837815,-469.64859563,0.00012491,2]
[400213374,1767199837827,-23.25728173,0.00012491,2]
[400213376,1767199837839,-500.0,0.00012491,2]
[400213378,1767199837849,-1176.2143946,0.00012491,2]
[400213379,1767199837859,-500.0,0.00012491,2]
[400213380,1767199837871,-500.0,0.00012491,2]
[400213381,1767199837882,-500.0,0.00012491,2]
[400213382,1767199837892,-1176.2143946,0.00012491,2]
[400213383,1767199837902,-573.10739038,0.00012491,2]
[400213384,1767199837915,-603.10700422,0.00012491,2]
[400213385,1767199837924,-237.72999214,0.00012491,2]
[400213386,1767199837934,-1176.2143946,0.00012491,2]
[400213387,1767199837945,-1176.2143946,0.00012491,2]
[400213388,1767199837955,-1176.2143946,0.00012491,2]
[400213389,1767199837964,-500.0,0.00012491,2]
[400213390,1767199837974,-1176.2143946,0.00012491,2]
[400213391,1767199837984,-1176.2143946,0.00012491,2]
[400213392,1767199837993,-1176.2143946,0.00012491,2]
[400213393,1767199838002,-1176.2143946,0.00012491,2]
[400213394,1767199838011,-1176.2143946,0.00012491,2]
[400213395,1767199838166,-1176.2143946,0.00012491,2]
[400213396,1767199838184,-1176.2143946,0.00012491,2]
[400213397,1767199838195,-892.51363279,0.00012491,2]
[400213398,1767199838207,-283.70076181,0.00012491,2]
[400213399,1767199838217,-1176.2143946,0.00012491,2]
[400213400,1767199838226,-159.79894152,0.00012491,2]
[400213401,1767199838239,-596.42230822,0.00012491,2]
[400213402,1767199838252,-327.55762312,0.00012491,2]
[400213403,1767199838264,-92.43552174,0.00012491,2]
[400213404,1767199838274,-261.93949504,0.00012491,2]
[400213405,1767199838285,-906.77003365,0.00012491,2]
[400213406,1767199838297,-7.50486591,0.00012491,2]
[400213407,1767199838307,-1176.2143946,0.00012491,2]
[400213408,1767199838317,-343.12587524,0.00012491,2]
[400213409,1767199838332,-833.08851936,0.00012491,2]
[400213410,1767199838341,-1176.2143946,0.00012491,2]
[400213411,1767199838351,-389759.12136156,0.00012492,2]
[400213412,1767199838360,-5800.65255378,0.000125,2]
[400213413,1767199838370,-3131.28917161,0.00012595,2]
[400213414,1767199838379,-151.0,0.000126,2]
[400213415,1767199838389,-151.0,0.000126,2]
[400213416,1767199838399,-151.0,0.000126,2]
[400213417,1767199838408,-151.0,0.000126,2]
[400213418,1767199838417,-151.0,0.000126,2]
[400213419,1767199838428,-151.0,0.000126,2]
[400213420,1767199838437,-151.0,0.000126,2]
[400213421,1767199838447,-151.0,0.000126,2]
[400213422,1767199838457,-151.0,0.000126,2]
[400213423,1767199838467,-151.0,0.000126,2]
[400213424,1767199838476,-151.0,0.000126,2]
[400213425,1767199838486,-151.0,0.000126,2]
[400213426,1767199838496,-151.0,0.000126,2]
[400213427,1767199838506,-420.0,0.00012733,2]
[400213428,1767199838515,-150.0,0.00012817,2]
[400213429,1767199838525,-390.89521839,0.00013252,2]
[400213430,1767199838535,-500.0,0.00013273,2]
[400213431,1767199838544,-500.0,0.00013273,2]
[400213432,1767199838554,-500.0,0.00013273,2]
[400213433,1767199838564,-500.0,0.00013273,2]
[400213434,1767199838574,-436.0750698,0.00013273,2]
[400213435,1767199838584,-500.0,0.00013273,2]
[400213436,1767199838593,-500.0,0.00013273,2]
[400213437,1767199838602,-500.0,0.00013273,2]
[400213438,1767199838612,-489.48000919,0.00013273,2]
[400213439,1767199838622,-580.76,0.00013698,2]
[400213440,1767199838631,-587.48,0.00013698,2]
[400213441,1767199838640,-587.48,0.00013698,2]
[400213442,1767199838650,-587.48,0.00013698,2]
[400213443,1767199838660,-587.48,0.00013698,2]
[400213444,1767199838669,-587.48,0.00013698,2]
[400213445,1767199838679,-587.48,0.00013698,2]
[400213446,1767199838688,-587.48,0.00013698,2]
[400213447,1767199838698,-587.48,0.00013698,2]
[400213448,1767199838708,-587.48,0.00013698,2]
[400213449,1767199838718,-587.48,0.00013698,2]
[400213450,1767199838728,-587.48,0.00013698,2]
[400213451,1767199838737,-587.48,0.00013698,2]
[400213452,1767199838747,-587.48,0.00013698,2]
[400213453,1767199838757,-587.48,0.00013698,2]
[400213454,1767199838766,-587.48,0.00013698,2]
[400213455,1767199838776,-587.48,0.00013698,2]
[400213456,1767199838786,-587.48,0.00013698,2]
[400213457,1767199838795,-587.48,0.00013698,2]
[400213458,1767199838805,-587.48,0.00013698,2]
[400213459,1767199838814,-587.48,0.00013698,2]
[400213460,1767199838824,-587.48,0.00013698,2]
[400213461,1767199838834,-587.48,0.00013698,2]
[400213462,1767199838847,-587.48,0.00013698,2]
[400213463,1767199838856,-587.68781649,0.00013698,2]
[400213464,1767199838866,-15490.5579877,0.00013699,2]
[400213465,1767199838878,-2942.9097946,0.00013699,2]
[400213466,1767199838889,-237.68038452,0.00013699,2]
[400213467,1767199838899,-500.0,0.00013699,2]
[400213468,1767199838908,-158.38534385,0.00013699,2]
[400213469,1767199838919,-500.0,0.00013699,2]
[400213470,1767199838928,-436.1426325,0.00013699,2]
[400213471,1767199838938,-500.0,0.00013699,2]
[400213472,1767199838949,-500.0,0.00013699,2]
[400213473,1767199838958,-1000.0,0.00013821,2]
[400213474,1767199838968,-556.87906344,0.00013821,2]
[400213475,1767199838977,-1000.0,0.00013821,2]
[400213476,1767199838987,-1000.0,0.00013821,2]
[400213477,1767199838997,-150.0,0.00013982,2]
[400213478,1767199839006,-587.0,0.00013984,2]
[400213479,1767199839016,-1000.0,0.00014247,2]
[400213480,1767199839026,-439.9841302,0.00014247,2]
[400213481,1767199839036,-1000.0,0.00014247,2]
[400213482,1767199839046,-1500.0,0.00014368,2]
[400213483,1767199839056,-1500.0,0.00014368,2]
[400213484,1767199839066,-1500.0,0.00014368,2]
[400213485,1767199839076,-285.18924382,0.00014482,2]
[400213486,1767199839086,-285.18924383,0.00014483,2]
[400213487,1767199839095,-285.18924382,0.00014483,2]
[400213488,1767199839105,-285.18924382,0.00014483,2]
[400213489,1767199839115,-285.19124014,0.00014485,2]
[400213490,1767199839125,-285.18924582,0.00014485,2]
[400213491,1767199839135,-250.0,0.00014757,2]
[400213492,1767199839145,-1500.0,0.00014795,2]
[400213493,1767199839155,-1500.0,0.00014795,2]
[400213494,1767199839166,-100000.0,0.00014882,2]
[400213495,1767199839176,-179.25919058,0.00014916,2]
[400213496,1767199839186,-1000.0,0.00014916,2]
[400213497,1767199839195,-2000.0,0.00014916,2]
[400213498,1767199839204,-181.09,0.00015147,2]
[400213499,1767199839213,-450.52330255,0.00015252,2]
[400213500,1767199839222,-1500.0,0.00015342,2]
[400213501,1767199839232,-1500.0,0.00015342,2]
[400213502,1767199839241,-823.0,0.00015357,2]
[400213503,1767199839251,-2500.0,0.00015464,2]
[400213505,1767199839260,-287.18556852,0.00015478,2]
[400213507,1767199839270,-2608.47131211,0.00016012,2]
[400213509,1767199839279,-241.46,0.00016312,2]
[400213511,1767199839289,-588.0,0.00016866,2]
[400213513,1767199839298,-154.23,0.0001719,30]
[400213515,1767199839308,-154.23,0.0001719,30]
[400213517,1767199839317,-154.23,0.0001719,30]
[400213519,1767199839327,-154.23,0.0001719,30]
[400213521,1767199839336,-154.23,0.0001719,30]
[400213523,1767199839346,-154.23,0.0001719,30]
[400213525,1767199839355,-510.15138671,0.00017252,2]
[400213526,1767199839364,-301.82,0.00017477,2]
[400213528,1767199839373,-2262.81340494,0.000178,3]
[400213529,1767199839383,-15587.91656176,0.000178,3]
[400213530,1767199839392,-1041.66666667,0.00017868,2]
[400213531,1767199839401,-161.83602163,0.0001824,2]
[400213532,1767199839410,-362.19,0.0001864,2]
[400213533,1767199839419,-30000.0,0.000188,4]
[400213534,1767199839429,-2000.0,0.00019,14]
[400213535,1767199839438,-2020.94,0.00019,14]
[400213536,1767199839447,-2000.0,0.00019,14]
[400213537,1767199839456,-1038.33,0.000192,2]
[400213538,1767199839465,-160.6,0.000192,2]
[400213540,1767199839474,-165.71,0.000192,2]
[400213541,1767199839483,-9686.67,0.000192,2]
[400213542,1767199839493,-569.77947087,0.00019252,2]
[400213543,1767199839502,-30000.0,0.000198,5]
[400213545,1767199839511,-422.55,0.00019805,2]
[400213546,1767199839520,-1597.50710874,0.0002,2]
[400213547,1767199839529,-1102.0,0.00020154,2]
[400213548,1767199839538,-1102.0,0.00020511,2]
[400213549,1767199839547,-1102.0,0.00020525,2]
[400213550,1767199839556,-1102.0,0.00020786,2]
[400213551,1767199839566,-1102.0,0.00020787,2]
[400213552,1767199839575,-30000.0,0.000208,7]
[400213554,1767199839585,-1102.0,0.00020802,2]
[400213555,1767199839594,-1102.0,0.0002082,2]
[400213556,1767199839603,-482.92,0.00020969,2]
[400213557,1767199839614,-1102.0,0.00021089,2]
[400213558,1767199839623,-1102.0,0.00021128,2]
[400213559,1767199839632,-1364.0,0.00021179,2]
[400213560,1767199839644,-2156.0,0.00021179,2]
[400213561,1767199839653,-627.0,0.00021179,2]
[400213562,1767199839663,-629.40755503,0.00021252,2]
[400213563,1767199839672,-168.0,0.00021254,2]
[400213564,1767199839681,-1102.0,0.00021289,2]
[400213565,1767199839691,-1102.0,0.00021399,2]
[400213566,1767199839700,-1102.0,0.0002145,2]
[400213567,1767199839710,-1102.0,0.00021461,2]
[400213568,1767199839719,-1102.0,0.00021474,2]
[400213569,1767199839728,-1102.0,0.0002158,2]
[400213570,1767199839738,-1102.0,0.00021618,2]
[400213571,1767199839748,-1102.0,0.00021709,2]
[400213572,1767199839757,-168.0,0.00021743,2]
[400213573,1767199839767,-1102.0,0.00021787,2]
[400213574,1767199839776,-30000.0,0.000218,7]
[400213575,1767199839786,-1102.0,0.00021889,2]
[400213576,1767199839795,-15587.9,0.000219,3]
[400213577,1767199839805,-1102.0,0.00021901,2]
[400213578,1767199839816,-260.08767073,0.00021917,2]
[400213579,1767199839825,-2115.32341369,0.00021917,2]
[400213580,1767199839838,-500.0,0.00021917,2]
[400213581,1767199839847,-500.0,0.00021917,2]
[400213582,1767199839856,-1089.48,0.00021917,2]
[400213583,1767199839865,-504.41364337,0.00021917,2]
[400213584,1767199839877,-707.69,0.00021917,2]
[400213585,1767199839887,-500.0,0.00021917,2]
[400213586,1767199839896,-2983.45,0.00021917,2]
[400213587,1767199839907,-447.91539096,0.00021917,2]
[400213588,1767199839920,-374.71260428,0.00021917,2]
[400213589,1767199839929,-500.0,0.00021917,2]
[400213590,1767199839938,-500.0,0.00021917,2]
[400213591,1767199839954,-9696.43,0.00021917,2]
[400213592,1767199839967,-500.0,0.00021917,2]
[400213593,1767199839977,-500.0,0.00021917,2]
[400213594,1767199839986,-337.5324406,0.00021917,2]
[400213595,1767199839995,-500.0,0.00021917,2]
[400213596,1767199840004,-500.0,0.00021917,2]
[400213597,1767199840014,-2098.98,0.00021917,2]
[400213598,1767199840023,-500.0,0.00021917,2]
[400213599,1767199840033,-500.0,0.00021917,2]
[400213600,1767199840042,-500.0,0.00021917,2]
[400213601,1767199840051,-500.0,0.00021917,2]
[400213602,1767199840061,-500.0,0.00021917,2]
[400213603,1767199840070,-1323.99,0.00021917,2]
[400213604,1767199840079,-275.96070951,0.00021918,2]
[400213605,1767199840088,-1102.0,0.00021954,2]
[400213606,1767199840097,-1102.0,0.00021963,2]
[400213607,1767199840107,-1102.0,0.00021996,2]
[400213608,1767199840116,-245.13,0.00022,2]
[400213609,1767199840126,-173.85,0.00022,7]
[400213611,1767199840135,-184.0,0.00022,2]
[400213613,1767199840144,-543.28,0.00022134,2]
[400213615,1767199840154,-2115.32341369,0.00022191,2]
[400213617,1767199840164,-500.0,0.00022191,2]
[400213619,1767199840173,-501.92749062,0.00022191,2]
[400213621,1767199840182,-1089.48,0.00022191,2]
[400213623,1767199840191,-707.69,0.00022191,2]
[400213625,1767199840201,-500.0,0.00022191,2]
[400213627,1767199840210,-2983.45,0.00022191,2]
[400213628,1767199840219,-313.75261794,0.00022191,2]
[400213629,1767199840228,-500.0,0.00022191,2]
[400213630,1767199840238,-9696.43,0.00022191,2]
[400213631,1767199840247,-500.0,0.00022191,2]
[400213632,1767199840257,-500.0,0.00022191,2]
[400213633,1767199840266,-500.0,0.00022191,2]
[400213634,1767199840275,-2098.98,0.00022191,2]
[400213635,1767199840284,-500.0,0.00022191,2]
[400213636,1767199840294,-500.0,0.00022191,2]
[400213637,1767199840303,-500.0,0.00022191,2]
[400213638,1767199840312,-500.0,0.00022191,2]
[400213639,1767199840321,-1323.99,0.00022191,2]
[400213640,1767199840331,-151.0,0.00022393,2]
[400213641,1767199840340,-2643.81581537,0.00022465,2]
[400213642,1767199840350,-500.0,0.00022465,2]
[400213644,1767199840360,-1089.48,0.00022465,2]
[400213645,1767199840369,-707.69,0.00022465,2]
[400213647,1767199840378,-500.0,0.00022465,2]
[400213649,1767199840387,-2983.45,0.00022465,2]
[400213651,1767199840396,-217.22,0.00022465,2]
[400213653,1767199840406,-9696.43,0.00022465,2]
[400213655,1767199840415,-500.0,0.00022465,2]
[400213657,1767199840424,-500.0,0.00022465,2]
[400213659,1767199840433,-624.92,0.00022465,2]
[400213661,1767199840442,-2098.98,0.00022465,2]
[400213663,1767199840452,-465.09067796,0.00022465,2]
[400213665,1767199840462,-500.0,0.00022465,2]
[400213667,1767199840471,-500.0,0.00022465,2]
[400213669,1767199840481,-500.0,0.00022465,2]
[400213671,1767199840491,-1323.99,0.00022465,2]
[400213672,1767199840500,-9686.67,0.000226,2]
[400213675,1767199840509,-500.0,0.00022739,2]
[400213676,1767199840519,-1089.48,0.00022739,2]
[400213678,1767199840528,-707.69,0.00022739,2]
[400213680,1767199840538,-500.0,0.00022739,2]
[400213682,1767199840547,-2983.45,0.00022739,2]
[400213684,1767199840557,-9696.43,0.00022739,2]
[400213686,1767199840566,-500.0,0.00022739,2]
[400213688,1767199840576,-500.0,0.00022739,2]
[400213690,1767199840586,-2098.98,0.00022739,2]
[400213692,1767199840595,-500.0,0.00022739,2]
[400213694,1767199840604,-500.0,0.00022739,2]
[400213696,1767199840613,-500.0,0.00022739,2]
[400213698,1767199840623,-1323.99,0.00022739,2]
[400213700,1767199840632,-873665.76355811,0.0002277,2]
[400213702,1767199840641,-30000.0,0.000228,7]
[400213704,1767199840650,-1041.66666667,0.00023,3]
[400213706,1767199840659,-500.0,0.00023013,2]
[400213708,1767199840668,-1089.48,0.00023013,2]
[400213710,1767199840678,-707.69,0.00023013,2]
[400213712,1767199840687,-500.0,0.00023013,2]
[400213714,1767199840696,-2983.45,0.00023013,2]
[400213715,1767199840705,-9696.43,0.00023013,2]
[400213717,1767199840714,-545.7550806,0.00023013,2]
[400213719,1767199840725,-500.0,0.00023013,2]
[400213721,1767199840734,-2098.98,0.00023013,2]
[400213723,1767199840744,-517.2474778,0.00023013,2]
[400213725,1767199840753,-500.0,0.00023013,2]
[400213727,1767199840762,-500.0,0.00023013,2]
[400213729,1767199840775,-1323.99,0.00023013,2]
[400213731,1767199840785,-689.03563919,0.00023252,2]
[400213733,1767199840795,-500.0,0.00023287,2]
[400213735,1767199840804,-1089.48,0.00023287,2]
[400213737,1767199840814,-707.69,0.00023287,2]
[400213739,1767199840824,-500.0,0.00023287,2]
[400213741,1767199840835,-2983.45,0.00023287,2]
[400213743,1767199840845,-9696.43,0.00023287,2]
[400213745,1767199840855,-500.0,0.00023287,2]
[400213747,1767199840874,-2098.98,0.00023287,2]
[400213749,1767199840884,-500.0,0.00023287,2]
[400213751,1767199840893,-203.39114107,0.00023287,2]
[400213753,1767199840903,-603.64,0.00023299,2]
[400213755,1767199840915,-285.18924382,0.00023485,2]
[400213757,1767199840925,-285.18924383,0.00023486,2]
[400213759,1767199840934,-285.18924382,0.00023486,2]
[400213761,1767199840943,-285.18924382,0.00023486,2]
[400213763,1767199840952,-285.19124014,0.00023487,2]
[400213765,1767199840961,-285.18924582,0.00023487,2]
[400213767,1767199840970,-1038.33,0.000235,14]
[400213769,1767199840979,-500.0,0.00023561,2]
[400213771,1767199840988,-1089.48,0.00023561,2]
[400213773,1767199840998,-707.69,0.00023561,2]
[400213775,1767199841007,-500.0,0.00023561,2]
[400213777,1767199841015,-2983.45,0.00023561,2]
[400213779,1767199841024,-9696.43,0.00023561,2]
[400213781,1767199841033,-500.0,0.00023561,2]
[400213783,1767199841043,-2098.98,0.00023561,2]
[400213785,1767199841052,-500.0,0.00023561,2]
[400213787,1767199841061,-2000.0,0.00023582,7]
[400213789,1767199841071,-1080.36507781,0.00023746,2]
[400213791,1767199841080,-30000.0,0.000238,7]
[400213792,1767199841089,-200.90977335,0.00023835,2]
[400213794,1767199841099,-500.0,0.00023835,2]
[400213796,1767199841108,-1089.48,0.00023835,2]
[400213799,1767199841117,-707.69,0.00023835,2]
[400213800,1767199841126,-500.0,0.00023835,2]
[400213802,1767199841136,-2983.45,0.00023835,2]
[400213804,1767199841145,-9696.43,0.00023835,2]
[400213806,1767199841154,-500.0,0.00023835,2]
[400213808,1767199841163,-2098.98,0.00023835,2]
[400213810,1767199841172,-500.0,0.00023835,2]
[400213812,1767199841181,-705.18345983,0.000239,2]
[400213814,1767199841191,-705.18345977,0.000239,2]
[400213816,1767199841200,-705.18345977,0.000239,2]
[400213818,1767199841209,-705.18345977,0.000239,2]
[400213820,1767199841218,-705.18345977,0.000239,2]
[400213822,1767199841227,-705.18345977,0.000239,2]
[400213824,1767199841236,-705.18345977,0.000239,2]
[400213825,1767199841245,-705.18345977,0.000239,2]
[400213826,1767199841255,-705.18345977,0.000239,2]
[400213827,1767199841264,-1041.66666667,0.00024,7]
[400213828,1767199841273,-161.83602163,0.00024079,2]
[400213829,1767199841283,-574.21869989,0.00024109,2]
[400213830,1767199841292,-1089.48,0.00024109,2]
[400213831,1767199841302,-707.69,0.00024109,2]